fUSD/lending_fUSD_20250125
["ID","MTS","AMOUNT","RATE_DAILY","PERIOD"]
[350354956,1737810634792,-500.0,0.00017531,2]
[350354957,1737810634801,-500.0,0.00017531,2]
[350354958,1737810634809,-500.0,0.00017531,2]
[350354959,1737810634818,-500.0,0.00017531,2]
[350354960,1737810634827,-500.0,0.00017531,2]
[350354961,1737810634836,-500.0,0.00017531,2]
[350354962,1737810634846,-513.07244045,0.00017531,2]
[350354963,1737810634855,-500.0,0.00017531,2]
[350354964,1737810634864,-500.0,0.00017531,2]
[350354965,1737810634873,-500.0,0.00017531,2]
[350354966,1737810634882,-500.0,0.00017531,2]
[350354967,1737810634891,-500.0,0.00017531,2]
[350354968,1737810634900,-500.0,0.00017531,2]
[350354969,1737810634910,-505.68054413,0.00017531,2]
[350354970,1737810634919,-500.0,0.00017531,2]
[350354971,1737810634928,-500.0,0.00017531,2]
[350354972,1737810634938,-500.0,0.00017531,2]
[350354973,1737810634947,-500.0,0.00017531,2]
[350354974,1737810634957,-500.0,0.00017531,2]
[350354975,1737810634966,-504.48820357,0.00017531,2]
[350354976,1737810634976,-500.0,0.00017531,2]
[350354977,1737810634985,-500.0,0.00017531,2]
[350354978,1737810634995,-504.37012111,0.00017531,2]
[350354979,1737810635006,-500.0,0.00017531,7]
[350354980,1737810635015,-205.61619387,0.0001765,2]
[350354981,1737810635024,-430.64066539,0.0001766,2]
[350354982,1737810635033,-500.0,0.00017667,2]
[350354983,1737810635043,-500.0,0.00017667,2]
[350354984,1737810635053,-500.0,0.00017667,2]
[350354985,1737810635062,-500.0,0.00017667,2]
[350354986,1737810635071,-500.0,0.00017667,2]
[350354987,1737810635083,-500.0,0.00017667,2]
[350354988,1737810635092,-500.0,0.00017667,2]
[350354989,1737810635101,-500.0,0.00017667,2]
[350354990,1737810635110,-500.0,0.00017667,2]
[350354991,1737810635119,-500.0,0.00017667,2]
[350354992,1737810635129,-500.0,0.00017667,2]
[350354993,1737810635139,-500.0,0.00017667,2]
[350354994,1737810635148,-500.0,0.00017667,2]
[350354995,1737810635158,-500.0,0.00017667,2]
[350354996,1737810635167,-500.0,0.00017667,2]
[350354997,1737810635176,-500.0,0.00017667,2]
[350354998,1737810635186,-500.0,0.00017667,2]
[350354999,1737810635195,-500.0,0.00017667,2]
[350355000,1737810635203,-500.0,0.00017667,2]
[350355001,1737810635213,-500.0,0.00017667,2]
[350355002,1737810635222,-500.0,0.00017668,2]
[350355003,1737810635231,-500.0,0.00017668,2]
[350355004,1737810635240,-500.0,0.00017668,2]
[350355005,1737810635250,-500.0,0.00017668,2]
[350355006,1737810635258,-500.0,0.00017668,2]
[350355007,1737810635267,-500.0,0.00017668,2]
[350355008,1737810635276,-500.0,0.00017668,2]
[350355009,1737810635285,-500.0,0.00017668,2]
[350355010,1737810635295,-180.02207082,0.00017668,2]
[350355011,1737810635304,-500.0,0.00017668,2]
[350355012,1737810635312,-500.0,0.00017668,2]
[350355013,1737810635321,-513.90115436,0.00017668,2]
[350355014,1737810635330,-500.0,0.00017668,2]
[350355015,1737810635340,-500.0,0.00017668,2]
[350355016,1737810635349,-500.0,0.00017668,2]
[350355017,1737810635359,-500.0,0.00017668,2]
[350355018,1737810635367,-500.0,0.00017668,2]
[350355019,1737810635377,-500.0,0.00017668,2]
[350355020,1737810635385,-500.0,0.00017668,2]
[350355021,1737810635395,-500.0,0.00017668,2]
[350355022,1737810635404,-500.0,0.00017668,2]
[350355023,1737810635413,-500.0,0.00017668,2]
[350355024,1737810635422,-500.0,0.00017668,2]
[350355025,1737810635431,-500.0,0.00017668,2]
[350355026,1737810635440,-500.0,0.00017668,2]
[350355027,1737810635449,-500.0,0.00017668,2]
[350355028,1737810635459,-500.0,0.00017668,2]
[350355029,1737810635468,-594.4,0.00017668,2]
[350355030,1737810635478,-500.0,0.00017668,2]
[350355031,1737810635493,-500.0,0.00017668,2]
[350355032,1737810635506,-500.0,0.00017668,2]
[350355033,1737810635515,-500.0,0.00017668,2]
[350355034,1737810635524,-719.94,0.00017668,2]
[350355035,1737810635533,-500.0,0.00017668,2]
[350355036,1737810635543,-500.0,0.00017668,2]
[350355037,1737810635552,-500.0,0.00017668,2]
[350355038,1737810635561,-500.0,0.00017668,2]
[350355039,1737810635570,-500.0,0.00017668,2]
[350355040,1737810635580,-500.0,0.00017668,2]
[350355041,1737810635589,-500.0,0.00017668,2]
[350355042,1737810635599,-500.0,0.00017668,2]
[350355043,1737810635608,-500.0,0.00017668,2]
[350355044,1737810635618,-500.0,0.00017668,2]
[350355045,1737810635628,-500.0,0.00017668,2]
[350355046,1737810635639,-500.0,0.00017668,2]
[350355047,1737810635650,-500.0,0.00017668,2]
[350355048,1737810635659,-500.0,0.00017668,2]
[350355049,1737810635670,-500.0,0.00017668,7]
[350355050,1737810635681,-236.3,0.00017671,2]
[350355051,1737810635690,-182.12611365,0.00017681,2]
[350355052,1737810635701,-292.18,0.00017712,2]
[350355053,1737810635711,-165862.32589179,0.0001777,2]
[350355054,1737810635730,-33298.56284635,0.0001777,2]
[350355055,1737810635739,-292.52,0.00017781,2]
[350355056,1737810635749,-1000.0,0.00017782,2]
[350355057,1737810635759,-500.0,0.00017804,2]
[350355058,1737810635768,-828.25,0.00017804,2]
[350355059,1737810635778,-500.0,0.00017804,2]
[350355060,1737810635787,-500.0,0.00017804,2]
[350355061,1737810635798,-500.0,0.00017804,2]
[350355062,1737810635808,-796.62,0.00017804,2]
[350355063,1737810635818,-679.27,0.00017804,2]
[350355064,1737810635827,-500.0,0.00017804,2]
[350355065,1737810635837,-500.0,0.00017804,2]
[350355066,1737810635847,-500.0,0.00017804,2]
[350355067,1737810635857,-500.0,0.00017804,2]
[350355068,1737810635866,-500.0,0.00017804,2]
[350355069,1737810635877,-508.95,0.00017804,2]
[350355070,1737810635887,-500.0,0.00017804,2]
[350355071,1737810635895,-500.0,0.00017804,2]
[350355072,1737810635905,-500.0,0.00017804,2]
[350355073,1737810635915,-574.85,0.00017804,2]
[350355074,1737810635924,-500.0,0.00017804,2]
[350355075,1737810635933,-500.0,0.00017804,2]
[350355076,1737810635942,-500.0,0.00017804,2]
[350355077,1737810635952,-500.0,0.00017804,2]
[350355078,1737810635961,-500.0,0.00017804,2]
[350355079,1737810635971,-500.0,0.00017804,2]
[350355080,1737810635980,-500.0,0.00017804,2]
[350355081,1737810635989,-500.0,0.00017804,2]
[350355082,1737810635998,-349.09,0.00017804,2]
[350355083,1737810636008,-500.0,0.00017804,2]
[350355084,1737810636017,-500.0,0.00017804,2]
[350355085,1737810636026,-500.0,0.00017804,2]
[350355086,1737810636035,-500.0,0.00017804,2]
[350355087,1737810636044,-500.0,0.00017804,2]
[350355088,1737810636053,-500.0,0.00017804,2]
[350355089,1737810636062,-500.0,0.00017804,2]
[350355090,1737810636071,-270.62,0.00017804,2]
[350355091,1737810636084,-595.61,0.00017804,2]
[350355092,1737810636093,-500.0,0.00017804,2]
[350355093,1737810636102,-500.0,0.00017804,2]
[350355094,1737810636112,-362.31,0.00017804,2]
[350355095,1737810636123,-500.0,0.00017804,2]
[350355096,1737810636132,-1127.62,0.00017804,2]
[350355097,1737810636141,-500.0,0.00017804,2]
[350355098,1737810636151,-500.0,0.00017804,2]
[350355099,1737810636161,-500.0,0.00017804,2]
[350355100,1737810636171,-500.0,0.00017804,2]
[350355101,1737810636180,-500.0,0.00017804,2]
[350355102,1737810636191,-500.0,0.00017804,2]
[350355103,1737810636200,-500.0,0.00017805,2]
[350355104,1737810636210,-500.0,0.00017805,2]
[350355105,1737810636219,-500.0,0.00017805,2]
[350355106,1737810636229,-440.04111789,0.00017805,2]
[350355107,1737810636239,-500.0,0.00017805,2]
[350355108,1737810636248,-500.0,0.00017805,2]
[350355109,1737810636258,-393.99,0.00017805,2]
[350355110,1737810636267,-500.0,0.00017805,2]
[350355111,1737810636276,-500.0,0.00017805,2]
[350355112,1737810636285,-500.0,0.00017805,2]
[350355113,1737810636295,-500.0,0.00017805,2]
[350355114,1737810636304,-500.0,0.00017805,2]
[350355115,1737810636314,-500.0,0.00017805,2]
[350355116,1737810636495,-500.0,0.00017805,2]
[350355117,1737810636505,-500.0,0.00017805,2]
[350355118,1737810636515,-300.50384278,0.00017805,2]
[350355119,1737810636524,-500.0,0.00017805,2]
[350355120,1737810636533,-500.0,0.00017805,2]
[350355121,1737810636543,-500.0,0.00017805,2]
[350355122,1737810636552,-500.0,0.00017805,2]
[350355123,1737810636562,-500.0,0.00017805,2]
[350355124,1737810636572,-500.0,0.00017805,2]
[350355125,1737810636581,-240.82,0.00017805,2]
[350355126,1737810636591,-500.0,0.00017805,2]
[350355127,1737810636600,-719.94,0.00017805,2]
[350355128,1737810636610,-500.0,0.00017805,2]
[350355129,1737810636619,-386.55,0.00017805,2]
[350355130,1737810636629,-500.0,0.00017805,2]
[350355131,1737810636639,-500.0,0.00017805,2]
[350355132,1737810636648,-500.0,0.00017805,2]
[350355133,1737810636659,-500.0,0.00017805,2]
[350355134,1737810636668,-500.0,0.00017805,2]
[350355135,1737810636678,-500.0,0.00017805,2]
[350355136,1737810636688,-500.0,0.00017805,2]
[350355137,1737810636698,-559.32,0.00017805,2]
[350355138,1737810636707,-601.11481853,0.00017805,2]
[350355139,1737810636717,-500.0,0.00017805,7]
[350355140,1737810636727,-16553.8266,0.00017844,2]
[350355141,1737810636736,-298.2,0.0001789,2]
[350355142,1737810636746,-205.61619387,0.000179,2]
[350355143,1737810636756,-19529.0,0.000179,2]
[350355144,1737810636766,-500.0,0.0001791,2]
[350355145,1737810636775,-500.0,0.0001791,2]
[350355146,1737810636784,-500.0,0.0001791,2]
[350355147,1737810636795,-500.0,0.0001791,2]
[350355148,1737810636805,-500.0,0.0001791,2]
[350355149,1737810636814,-637.26702577,0.0001791,2]
[350355150,1737810636824,-500.0,0.00017941,2]
[350355151,1737810636835,-828.25,0.00017941,2]
[350355152,1737810636845,-500.0,0.00017941,2]
[350355153,1737810636855,-500.0,0.00017941,2]
[350355154,1737810636865,-796.62,0.00017941,2]
[350355155,1737810636875,-679.27,0.00017941,2]
[350355156,1737810636886,-500.0,0.00017941,2]
[350355157,1737810636895,-500.0,0.00017941,2]
[350355158,1737810636905,-500.0,0.00017941,2]
[350355159,1737810636915,-500.0,0.00017941,2]
[350355160,1737810636925,-500.0,0.00017941,2]
[350355161,1737810636936,-500.0,0.00017941,2]
[350355162,1737810636945,-500.0,0.00017941,2]
[350355163,1737810636955,-500.0,0.00017941,2]
[350355164,1737810636969,-574.85,0.00017941,2]
[350355165,1737810636979,-500.0,0.00017941,2]
[350355166,1737810636989,-500.0,0.00017941,2]
[350355167,1737810636999,-500.0,0.00017941,2]
[350355168,1737810637009,-500.0,0.00017941,2]
[350355169,1737810637019,-500.0,0.00017941,2]
[350355170,1737810637029,-637.3,0.00017941,2]
[350355171,1737810637039,-500.0,0.00017941,2]
[350355172,1737810637049,-500.0,0.00017941,2]
[350355173,1737810637059,-500.0,0.00017941,2]
[350355174,1737810637069,-500.0,0.00017941,2]
[350355175,1737810637082,-500.0,0.00017941,2]
[350355176,1737810637092,-500.0,0.00017941,2]
[350355177,1737810637103,-500.0,0.00017941,2]
[350355178,1737810637113,-500.0,0.00017941,2]
[350355179,1737810637123,-595.61,0.00017941,2]
[350355180,1737810637133,-506.18,0.00017941,2]
[350355181,1737810637142,-154.7348095,0.00017941,2]
[350355182,1737810637152,-500.0,0.00017941,2]
[350355183,1737810637164,-1127.62,0.00017941,2]
[350355184,1737810637174,-183.83792834,0.00017941,2]
[350355185,1737810637184,-500.0,0.00017941,2]
[350355186,1737810637194,-500.0,0.00017941,2]
[350355187,1737810637204,-500.0,0.00017941,2]
[350355188,1737810637213,-500.0,0.00017941,2]
[350355189,1737810637223,-500.0,0.00017942,2]
[350355190,1737810637234,-500.0,0.00017942,2]
[350355191,1737810637244,-500.0,0.00017942,2]
[350355192,1737810637253,-500.0,0.00017942,2]
[350355193,1737810637263,-500.0,0.00017942,2]
[350355194,1737810637272,-500.0,0.00017942,2]
[350355195,1737810637285,-500.0,0.00017942,2]
[350355196,1737810637295,-307.00694924,0.00017942,2]
[350355197,1737810637306,-398.42,0.00017942,2]
[350355198,1737810637316,-500.0,0.00017942,2]
[350355199,1737810637326,-239.96517813,0.00017942,2]
[350355200,1737810637335,-500.0,0.00017942,2]
[350355201,1737810637345,-500.0,0.00017942,2]
[350355202,1737810637356,-500.0,0.00017942,2]
[350355203,1737810637366,-500.0,0.00017942,2]
[350355204,1737810637376,-500.0,0.00017942,2]
[350355205,1737810637386,-500.0,0.00017942,2]
[350355206,1737810637396,-500.0,0.00017942,2]
[350355207,1737810637406,-500.0,0.00017942,2]
[350355208,1737810637416,-543.25,0.00017942,2]
[350355209,1737810637426,-719.94,0.00017942,2]
[350355210,1737810637436,-322.61,0.00017942,2]
[350355211,1737810637446,-500.0,0.00017942,2]
[350355212,1737810637455,-500.0,0.00017942,2]
[350355213,1737810637466,-500.0,0.00017942,2]
[350355214,1737810637476,-500.0,0.00017942,2]
[350355215,1737810637485,-500.0,0.00017942,2]
[350355216,1737810637495,-500.0,0.00017942,2]
[350355217,1737810637505,-895.27415269,0.00017942,2]
[350355218,1737810637515,-500.0,0.00017942,7]
[350355219,1737810637524,-847.3181039,0.00017944,2]
[350355220,1737810637534,-200.0,0.00017944,2]
[350355221,1737810637544,-3000.0,0.00017944,2]
[350355222,1737810637554,-2000.0,0.00017944,2]
[350355223,1737810637563,-200.0,0.00017944,2]
[350355224,1737810637572,-180.526,0.00018,2]
[350355225,1737810637583,-2301.893,0.00018,2]
[350355226,1737810637592,-500.0,0.00018078,2]
[350355227,1737810637603,-828.25,0.00018078,2]
[350355228,1737810637613,-500.0,0.00018078,2]
[350355229,1737810637623,-500.0,0.00018078,2]
[350355230,1737810637632,-796.62,0.00018078,2]
[350355231,1737810637642,-679.27,0.00018078,2]
[350355232,1737810637651,-537.26,0.00018078,2]
[350355233,1737810637661,-500.0,0.00018078,2]
[350355234,1737810637671,-500.0,0.00018078,2]
[350355235,1737810637681,-169.2,0.00018078,2]
[350355236,1737810637691,-500.0,0.00018078,2]
[350355237,1737810637700,-500.0,0.00018078,2]
[350355238,1737810637710,-574.85,0.00018078,2]
[350355239,1737810637720,-500.0,0.00018078,2]
[350355240,1737810637730,-459.54,0.00018078,2]
[350355241,1737810637740,-500.0,0.00018078,2]
[350355242,1737810637750,-500.0,0.00018078,2]
[350355243,1737810637759,-550.38,0.00018078,2]
[350355244,1737810637768,-500.0,0.00018078,2]
[350355245,1737810637778,-500.0,0.00018078,2]
[350355246,1737810637787,-500.0,0.00018078,2]
[350355247,1737810637797,-494.2,0.00018078,2]
[350355248,1737810637807,-500.0,0.00018078,2]
[350355249,1737810637817,-500.0,0.00018078,2]
[350355250,1737810637827,-595.61,0.00018078,2]
[350355251,1737810637836,-477.75,0.00018078,2]
[350355252,1737810637846,-1127.62,0.00018078,2]
[350355253,1737810637856,-500.0,0.00018078,2]
[350355256,1737810637866,-500.0,0.00018078,2]
[350355258,1737810637876,-500.0,0.00018078,2]
[350355260,1737810637886,-500.0,0.00018078,2]
[350355263,1737810637896,-229.0,0.00018079,2]
[350355264,1737810637906,-500.0,0.00018079,2]
[350355265,1737810637915,-500.0,0.00018079,2]
[350355266,1737810637926,-487.59,0.00018079,2]
[350355267,1737810637936,-500.0,0.00018079,2]
[350355268,1737810637946,-500.0,0.00018079,2]
[350355269,1737810637955,-500.0,0.00018079,2]
[350355270,1737810637965,-500.0,0.00018079,2]
[350355271,1737810637975,-500.0,0.00018079,2]
[350355272,1737810637985,-500.0,0.00018079,2]
[350355273,1737810637995,-621.44,0.00018079,2]
[350355274,1737810638004,-500.0,0.00018079,2]
[350355275,1737810638013,-500.0,0.00018079,2]
[350355276,1737810638022,-500.0,0.00018079,2]
[350355277,1737810638032,-500.0,0.00018079,2]
[350355278,1737810638042,-500.0,0.00018079,2]
[350355279,1737810638052,-719.94,0.00018079,2]
[350355280,1737810638062,-500.0,0.00018079,2]
[350355281,1737810638072,-500.0,0.00018079,2]
[350355282,1737810638086,-500.0,0.00018079,2]
[350355283,1737810638096,-500.0,0.00018079,2]
[350355284,1737810638106,-500.0,0.00018079,2]
[350355285,1737810638116,-500.0,0.00018079,2]
[350355286,1737810638129,-476.04,0.00018082,2]
[350355287,1737810638139,-200.0,0.00018123,2]
[350355288,1737810638149,-2000.0,0.00018123,2]
[350355289,1737810638160,-200.0,0.00018123,2]
[350355290,1737810638170,-205.61619387,0.0001815,2]
[350355291,1737810638179,-500.0,0.00018164,2]
[350355292,1737810638189,-787.19,0.00018187,2]
[350355293,1737810638198,-500.0,0.00018215,2]
[350355294,1737810638208,-828.25,0.00018215,2]
[350355295,1737810638218,-500.0,0.00018215,2]
[350355296,1737810638227,-500.0,0.00018215,2]
[350355297,1737810638237,-796.62,0.00018215,2]
[350355298,1737810638247,-679.27,0.00018215,2]
[350355299,1737810638257,-500.0,0.00018215,2]
[350355300,1737810638268,-377.76,0.00018215,2]
[350355301,1737810638280,-500.0,0.00018215,2]
[350355302,1737810638290,-523.61573202,0.00018215,2]
[350355303,1737810638299,-574.85,0.00018215,2]
[350355304,1737810638309,-500.0,0.00018215,2]
[350355305,1737810638318,-500.0,0.00018215,2]
[350355306,1737810638328,-500.0,0.00018215,2]
[350355307,1737810638340,-500.0,0.00018215,2]
[350355308,1737810638350,-500.0,0.00018215,2]
[350355309,1737810638359,-500.0,0.00018215,2]
[350355310,1737810638369,-500.0,0.00018215,2]
[350355311,1737810638378,-500.0,0.00018215,2]
[350355312,1737810638388,-595.61,0.00018215,2]
[350355313,1737810638399,-1127.62,0.00018215,2]
[350355314,1737810638409,-500.0,0.00018215,2]
[350355315,1737810638419,-500.0,0.00018215,2]
[350355316,1737810638428,-500.0,0.00018215,2]
[350355317,1737810638438,-500.0,0.00018215,2]
[350355318,1737810638447,-500.0,0.00018216,2]
[350355320,1737810638457,-374.05,0.00018216,2]
[350355322,1737810638467,-500.0,0.00018216,2]
[350355324,1737810638476,-500.0,0.00018216,2]
[350355325,1737810638486,-500.0,0.00018216,2]
[350355326,1737810638495,-500.0,0.00018216,2]
[350355327,1737810638505,-500.0,0.00018216,2]
[350355328,1737810638514,-500.0,0.00018216,2]
[350355329,1737810638524,-500.0,0.00018216,2]
[350355330,1737810638533,-500.0,0.00018216,2]
[350355331,1737810638543,-271.32,0.00018216,2]
[350355332,1737810638553,-500.0,0.00018216,2]
[350355333,1737810638564,-719.94,0.00018216,2]
[350355334,1737810638574,-500.0,0.00018216,2]
[350355335,1737810638585,-500.0,0.00018216,2]
[350355336,1737810638595,-500.0,0.00018216,2]
[350355337,1737810638604,-500.0,0.00018216,2]
[350355338,1737810638613,-500.0,0.00018216,2]
[350355339,1737810638623,-500.0,0.00018216,2]
[350355340,1737810638633,-177.81,0.00018231,2]
[350355341,1737810638643,-200.0,0.00018305,2]
[350355342,1737810638653,-2000.0,0.00018305,2]
[350355343,1737810638662,-200.0,0.00018305,2]
[350355344,1737810638672,-500.0,0.00018352,2]
[350355345,1737810638681,-828.25,0.00018352,2]
[350355346,1737810638691,-500.0,0.00018352,2]
[350355347,1737810638700,-500.0,0.00018352,2]
[350355348,1737810638710,-796.62,0.00018352,2]
[350355349,1737810638720,-679.27,0.00018352,2]
[350355350,1737810638730,-500.0,0.00018352,2]
[350355351,1737810638739,-500.0,0.00018352,2]
[350355352,1737810638748,-574.85,0.00018352,2]
[350355353,1737810638758,-500.0,0.00018352,2]
[350355354,1737810638767,-500.0,0.00018352,2]
[350355355,1737810638777,-602.55074722,0.00018352,2]
[350355356,1737810638786,-500.0,0.00018352,2]
[350355357,1737810638796,-304.48,0.00018352,2]
[350355358,1737810638805,-500.0,0.00018352,2]
[350355359,1737810638814,-500.0,0.00018352,2]
[350355360,1737810638824,-500.0,0.00018352,2]
[350355361,1737810638834,-595.61,0.00018352,2]
[350355362,1737810638843,-1127.62,0.00018352,2]
[350355363,1737810638853,-500.0,0.00018352,2]
[350355364,1737810638863,-500.0,0.00018352,2]
[350355365,1737810638872,-500.0,0.00018352,2]
[350355366,1737810638883,-335.6237709,0.00018353,2]
[350355367,1737810638943,-500.0,0.00018353,2]
[350355368,1737810638955,-500.0,0.00018353,2]
[350355369,1737810638964,-500.0,0.00018353,2]
[350355370,1737810638974,-500.0,0.00018353,2]
[350355371,1737810638983,-158.23,0.00018353,2]
[350355372,1737810638993,-500.0,0.00018353,2]
[350355373,1737810639002,-500.0,0.00018353,2]
[350355374,1737810639011,-500.0,0.00018353,2]
[350355375,1737810639020,-500.0,0.00018353,2]
[350355376,1737810639029,-719.94,0.00018353,2]
[350355377,1737810639038,-500.0,0.00018353,2]
[350355378,1737810639048,-500.0,0.00018353,2]
[350355379,1737810639057,-500.0,0.00018353,2]
[350355380,1737810639067,-500.0,0.00018353,2]
[350355381,1737810639077,-500.0,0.00018353,2]
[350355382,1737810639087,-500.0,0.00018353,2]
[350355383,1737810639097,-205.61619387,0.000184,2]
[350355384,1737810639107,-2000.0,0.00018488,2]
[350355385,1737810639117,-200.0,0.00018488,2]
[350355386,1737810639127,-500.0,0.00018489,2]
[350355387,1737810639137,-828.25,0.00018489,2]
[350355388,1737810639146,-500.0,0.00018489,2]
[350355389,1737810639156,-500.0,0.00018489,2]
[350355390,1737810639166,-796.62,0.00018489,2]
[350355391,1737810639175,-679.27,0.00018489,2]
[350355392,1737810639184,-500.0,0.00018489,2]
[350355393,1737810639194,-500.0,0.00018489,2]
[350355394,1737810639203,-574.85,0.00018489,2]
[350355395,1737810639213,-644.65613129,0.00018489,2]
[350355396,1737810639223,-500.0,0.00018489,2]
[350355397,1737810639232,-590.86490231,0.00018489,2]
[350355398,1737810639242,-500.0,0.00018489,2]
[350355399,1737810639252,-500.0,0.00018489,2]
[350355400,1737810639263,-500.0,0.00018489,2]
[350355401,1737810639273,-595.61,0.00018489,2]
[350355402,1737810639283,-1127.62,0.00018489,2]
[350355403,1737810639293,-500.0,0.00018489,2]
[350355404,1737810639310,-500.0,0.00018489,2]
[350355405,1737810639323,-500.0,0.00018489,2]
[350355406,1737810639333,-487.21,0.0001849,2]
[350355407,1737810639343,-500.0,0.0001849,2]
[350355408,1737810639354,-500.0,0.0001849,2]
[350355409,1737810639363,-296.27,0.0001849,2]
[350355410,1737810639372,-500.0,0.0001849,2]
[350355411,1737810639382,-500.0,0.0001849,2]
[350355412,1737810639392,-500.0,0.0001849,2]
[350355413,1737810639402,-500.0,0.0001849,2]
[350355414,1737810639411,-719.94,0.0001849,2]
[350355415,1737810639421,-500.0,0.0001849,2]
[350355416,1737810639431,-389.65218362,0.0001849,2]
[350355417,1737810639440,-500.0,0.0001849,2]
[350355418,1737810639451,-641.34107086,0.0001849,2]
[350355419,1737810639460,-500.0,0.0001849,2]
[350355420,1737810639470,-500.0,0.0001849,2]
[350355421,1737810639479,-177.79,0.00018494,2]
[350355422,1737810639489,-1000.0,0.00018608,2]
[350355423,1737810639498,-500.0,0.00018626,2]
[350355424,1737810639508,-828.25,0.00018626,2]
[350355425,1737810639517,-500.0,0.00018626,2]
[350355426,1737810639527,-500.0,0.00018626,2]
[350355427,1737810639536,-796.62,0.00018626,2]
[350355428,1737810639546,-679.27,0.00018626,2]
[350355429,1737810639557,-500.0,0.00018626,2]
[350355430,1737810639566,-500.0,0.00018626,2]
[350355431,1737810639576,-574.85,0.00018626,2]
[350355432,1737810639585,-500.0,0.00018626,2]
[350355433,1737810639594,-500.0,0.00018626,2]
[350355434,1737810639604,-500.0,0.00018626,2]
[350355435,1737810639614,-500.0,0.00018626,2]
[350355436,1737810639623,-335.59459088,0.00018626,2]
[350355437,1737810639639,-260.01540912,0.00018626,2]
[350355438,1737810639648,-1127.62,0.00018626,2]
[350355439,1737810639658,-500.0,0.00018626,2]
[350355440,1737810639668,-500.0,0.00018626,2]
[350355441,1737810639678,-500.0,0.00018626,2]
[350355442,1737810639692,-308.04407068,0.00018627,2]
[350355443,1737810639714,-500.0,0.00017941,2]
[350355444,1737810639724,-34.26592932,0.00018627,2]
[350355445,1737810639734,-399.14,0.00018627,2]
[350355446,1737810639743,-500.0,0.00018627,2]
[350355447,1737810639753,-129.4560667,0.00018627,2]
[350355448,1737810639765,-370.5439333,0.00018627,2]
[350355449,1737810639774,-500.0,0.00018627,2]
[350355450,1737810639784,-500.0,0.00018627,2]
[350355451,1737810639794,-719.94,0.00018627,2]
[350355452,1737810639804,-500.0,0.00018627,2]
[350355453,1737810639813,-500.0,0.00018627,2]
[350355454,1737810639822,-500.0,0.00018627,2]
[350355455,1737810639831,-500.0,0.00018627,2]
[350355456,1737810639840,-205.61619387,0.0001865,2]
[350355457,1737810639851,-200.0,0.00018673,2]
[350355458,1737810639860,-1324.4,0.00018732,2]
[350355459,1737810639870,-476.04,0.00018751,2]
[350355460,1737810639879,-500.0,0.00018763,2]
[350355461,1737810639888,-828.25,0.00018763,2]
[350355462,1737810639898,-500.0,0.00018763,2]
[350355463,1737810639907,-500.0,0.00018763,2]
[350355464,1737810639917,-796.62,0.00018763,2]